bitfinex-derivatives/quotes_SOLF0:USTF0_20250530
["timestamp","ask_amount","ask_price","bid_price","bid_amount"]
[1748626954124,0.04239626,158.64,158.62,6.3035]
[1748626954317,0.04239626,158.64,158.63,32.7]
[1748626954722,0.04239626,158.64,158.63,39.0033]
[1748626954923,0.04239626,158.64,158.63,32.7]
[1748626958526,6.34539626,158.64,158.63,32.7]
[1748626958727,0.04239626,158.64,158.63,32.7]
[1748626961831,0.04239626,158.64,158.63,39.0034]
[1748626964930,1.9977,158.71,158.67,6.3016]
[1748626965236,1.9977,158.71,158.63,32.7]
[1748626965624,6.3014,158.68,158.63,32.7]
[1748626965830,0.04676119,158.67,158.64,0.04016936]
[1748626967333,0.04676119,158.67,158.66,6.3022]
[1748626967533,0.04676119,158.67,158.64,0.04016936]
[1748626967734,0.04676119,158.67,158.66,6.3022]
[1748626969033,0.04676119,158.67,158.65,6.3025]
[1748626969235,0.04676119,158.67,158.64,0.04016936]
[1748626969430,6.3026,158.65,158.64,0.04016936]
[1748626970732,6.3037,158.63,158.6,577.1]
[1748626971141,6.3037,158.63,158.6,583.4043]
[1748626971740,6.3038,158.62,158.6,577.14067394]
[1748626971938,0.04819208,158.63,158.6,577.14067394]
[1748626972139,6.35159208,158.63,158.6,583.44497394]
[1748626972339,0.04819208,158.63,158.6,577.14067394]
[1748626973642,6.35169208,158.63,158.6,583.44507394]
[1748626974739,0.04819208,158.63,158.6,577.14067394]
[1748626975843,0.04819208,158.63,158.62,6.3038]
[1748626980246,6.3018,158.67,158.6,577.14067394]
[1748626980448,1.9977,158.71,158.6,577.1]
[1748626980950,6.3009,158.7,158.62,11.09178329]
[1748626981149,0.04721349,158.67,158.64,0.04696471]
[1748626981339,0.04721349,158.67,158.66,6.3022]
[1748626981944,32.66,158.76,158.65,167.57178329]
[1748626982446,6.2993,158.74,158.65,167.57178329]
[1748626982650,6.5091,158.78,158.7,6.3004]
[1748626982846,6.5091,158.78,158.7,38.9604]
[1748626982847,6.2996,158.73,158.7,38.9604]
[1748626983047,0.04565873,158.73,158.7,32.70301714]
[1748626983245,0.04565873,158.73,158.71,6.3002]
[1748626984041,6.34515873,158.73,158.7,39.00351714]
[1748626984643,0.04565873,158.73,158.7,32.70301714]
[1748626984849,6.2998,158.72,158.7,32.70301714]
[1748626985949,0.04565873,158.73,158.7,32.70301714]
[1748626986350,0.04565873,158.73,158.71,6.3002]
[1748626988045,0.04565873,158.73,158.7,39.00341714]
[1748626988046,6.34535873,158.73,158.7,39.00341714]
[1748626988251,0.04565873,158.73,158.7,32.70301714]
[1748626988653,6.34525873,158.73,158.7,39.00361714]
[1748626988951,0.04565873,158.73,158.7,39.00361714]
[1748626989252,6.34525873,158.73,158.7,39.00361714]
[1748626989443,0.04565873,158.73,158.7,32.70301714]
[1748626989643,6.2999,158.72,158.7,32.70301714]
[1748626989848,0.04565873,158.73,158.7,32.70301714]
[1748626990254,6.34525873,158.73,158.7,39.00361714]
[1748626991056,0.04565873,158.73,158.71,6.3001]
[1748626992256,6.34505873,158.73,158.7,39.00341714]
[1748626993258,6.2998,158.72,158.7,39.00341714]
[1748626993558,0.04565873,158.73,158.7,32.70301714]
[1748626995155,6.34525873,158.73,158.71,6.3002]
[1748626995654,0.04565873,158.73,158.7,32.70301714]
[1748626996364,6.3002,158.71,158.7,0.04301714]
[1748626998062,0.04565873,158.73,158.7,0.04301714]
[1748626998262,0.04565873,158.73,158.71,6.3]
[1748626998457,6.34535873,158.73,158.71,6.3]
[1748626998964,6.34535873,158.73,158.7,6.34351714]
[1748627000756,6.34535873,158.73,158.71,6.3002]
[1748627000960,6.34535873,158.73,158.7,0.04301714]
[1748627001361,6.34535873,158.73,158.7,6.34331714]
[1748627001561,6.2998,158.72,158.7,6.34331714]
[1748627002358,6.3002,158.71,158.7,0.04301714]
[1748627003562,0.04565873,158.73,158.67,32.6]
[1748627003563,6.3014,158.68,158.67,32.6]
[1748627003959,6.3014,158.68,158.64,32.6]
[1748627004164,6.3018,158.67,158.65,6.3024]
[1748627004364,6.3018,158.67,158.64,32.6]
[1748627004567,6.34659468,158.67,158.64,32.64679474]
[1748627004863,6.34659468,158.67,158.65,6.3025]
[1748627005463,0.04479468,158.67,158.66,6.3022]
[1748627006267,0.04479468,158.67,158.64,32.64679474]
[1748627006768,0.04479468,158.67,158.66,6.3022]
[1748627011667,13.23938329,158.75,158.69,6.3008]
[1748627011875,2.1476,158.75,158.64,32.6]
[1748627012165,2.1476,158.75,158.65,32.6]
[1748627012372,2.1476,158.75,158.68,6.3011]
[1748627012675,6.3003,158.71,158.7,0.04182123]
[1748627014571,4.2809,158.72,158.66,32.6]
[1748627014966,6.3018,158.67,158.66,32.6]
[1748627015470,0.04225293,158.68,158.66,38.9021]
[1748627015661,6.34395293,158.68,158.66,38.9021]
[1748627016773,6.3018,158.67,158.66,32.6]
[1748627017172,6.34385293,158.68,158.66,32.6]
[1748627018968,6.3018,158.67,158.66,32.6]
[1748627019378,6.34385293,158.68,158.66,32.6]
[1748627019771,0.04225293,158.68,158.66,32.6]
[1748627020371,0.04225293,158.68,158.67,6.3018]
[1748627020872,0.04225293,158.68,158.66,38.902]
[1748627021375,6.34395293,158.68,158.66,32.6]
[1748627022075,0.04225293,158.68,158.66,32.6]
[1748627022775,0.04225293,158.68,158.66,38.9019]
[1748627024373,0.04225293,158.68,158.67,6.3018]
[1748627026179,6.3001,158.72,158.69,6.3008]
[1748627026482,2.1476,158.75,158.66,32.6]
[1748627027078,6.3009,158.7,158.66,32.6]
[1748627027277,6.34713248,158.7,158.66,32.64244515]
[1748627027974,0.04623248,158.7,158.68,6.3012]
[1748627028283,0.04623248,158.7,158.66,32.64244515]
[1748627029375,0.04623248,158.7,158.66,0.04244515]
[1748627029577,6.3018,158.67,158.66,0.04244515]
[1748627046101,32.58,158.68,158.61,32.56]
[1748627046596,6.3043,158.61,158.58,38.885]
[1748627046794,2.0823,158.67,158.58,32.58]
[1748627046992,0.0407918,158.64,158.61,0.047872]
[1748627047393,32.6207918,158.64,158.61,0.047872]
[1748627047697,2.0342,158.63,158.56,544.22]
[1748627047895,4.1956,158.63,158.55,32.58]
[1748627048197,6.3059,158.57,158.55,32.58]
[1748627048401,4.1956,158.63,158.55,32.58]
[1748627048702,0.0400413,158.61,158.57,0.04573442]
[1748627049197,6.3056,158.58,158.57,0.04573442]
[1748627049397,0.0400413,158.61,158.57,0.04573442]
[1748627049600,6.3047,158.6,158.57,6.35143442]
[1748627049798,0.0400413,158.61,158.57,6.35143442]
[1748627050002,0.0400413,158.61,158.57,0.04573442]
[1748627050501,6.3052,158.59,158.57,0.04573442]
[1748627050700,0.0400413,158.61,158.57,0.04573442]
[1748627051003,6.3048,158.6,158.57,6.35123442]
[1748627051204,0.0400413,158.61,158.57,0.04573442]
[1748627051604,6.3052,158.59,158.57,0.04573442]
[1748627052900,6.3054,158.58,158.57,0.04573442]
[1748627053101,0.0400413,158.61,158.57,0.04573442]
[1748627054004,6.3053,158.59,158.57,0.04573442]
[1748627054205,6.3053,158.59,158.57,6.35143442]
[1748627054407,0.0400413,158.61,158.57,0.04573442]
[1748627054604,6.3445413,158.61,158.57,0.04573442]
[1748627054905,0.0400413,158.61,158.57,0.04573442]
[1748627055202,6.3048,158.6,158.57,0.04573442]
[1748627055505,0.0400413,158.61,158.57,0.04573442]
[1748627056103,0.0400413,158.61,158.6,6.3046]
[1748627057810,0.0400413,158.61,158.59,32.54]
[1748627058005,0.0400413,158.61,158.57,0.04573442]
[1748627059508,0.0400413,158.61,158.57,6.35153442]
[1748627060308,6.3047,158.6,158.57,6.35153442]
[1748627060505,0.0400413,158.61,158.57,0.04573442]
[1748627061307,0.0400413,158.61,158.58,11.07879428]
[1748627061510,0.0400413,158.61,158.6,6.3046]
[1748627061710,0.0400413,158.61,158.6,38.8446]
[1748627065817,0.0400413,158.61,158.6,32.54]
[1748627066912,0.0400413,158.61,158.6,38.8446]
[1748627067118,6.3442413,158.61,158.6,32.54]
[1748627067419,0.0400413,158.61,158.57,6.35143442]
[1748627067625,6.3049,158.6,158.57,6.35143442]
[1748627067811,6.3049,158.6,158.57,0.04573442]
[1748627068011,6.3049,158.6,158.58,6.3053]
[1748627068526,6.3444413,158.61,158.58,6.3053]
[1748627068820,0.0400413,158.61,158.57,0.04573442]
[1748627069222,0.0400413,158.61,158.57,6.35113442]
[1748627069423,0.0400413,158.61,158.57,0.04573442]
[1748627069624,6.3048,158.6,158.57,0.04573442]
[1748627070718,6.3048,158.6,158.58,6.3052]
[1748627071529,6.3444413,158.61,158.58,6.3052]
[1748627071919,6.3046,158.6,158.58,6.3052]
[1748627072921,6.305,158.59,158.57,6.35143442]
[1748627073129,0.0400413,158.61,158.57,0.04573442]
[1748627073623,15.29113558,158.61,158.52,32.54]
[1748627073821,17.45793558,158.61,158.52,32.54]
[1748627074530,6.3062,158.56,158.55,0.0401079]
[1748627076231,6.3062,158.56,158.55,7.9e-06]
[1748627077332,6.3086,158.5,158.49,32.54]
[1748627077628,11.07879428,158.55,158.46,38.85]
[1748627077829,6.3088,158.5,158.46,38.85]
[1748627078224,6.3088,158.5,158.46,0.04348165]
[1748627078225,0.04589742,158.5,158.46,0.04348165]
[1748627078428,6.3101,158.47,158.46,0.04348165]
[1748627078628,0.04589742,158.5,158.46,0.04348165]
[1748627078822,6.3096,158.48,158.46,0.04348165]
[1748627079428,6.3091,158.49,158.46,0.04348165]
[1748627079931,6.3091,158.49,158.46,6.35338165]
[1748627081533,6.3095,158.48,158.46,0.04348165]
[1748627082431,6.3098,158.47,158.46,0.04348165]
[1748627082635,0.04589742,158.5,158.46,0.04348165]
[1748627084132,0.04589742,158.5,158.46,6.35328165]
[1748627084533,6.3092,158.49,158.46,6.35328165]
[1748627084736,0.04589742,158.5,158.46,6.35328165]
[1748627085038,6.3092,158.49,158.46,6.35328165]
[1748627085731,6.3094,158.48,158.46,6.35328165]
[1748627086037,0.04589742,158.5,158.46,0.04348165]
[1748627086238,6.309,158.49,158.46,0.04348165]
[1748627087228,0.04589742,158.5,158.46,0.04348165]
[1748627087937,6.3098,158.47,158.46,0.04348165]
[1748627096447,6.3116,158.43,158.4,583.3525]
[1748627097150,6.3116,158.43,158.41,6.3122]
[1748627097347,6.3116,158.43,158.4,577.04]
[1748627097548,0.0449444,158.44,158.4,32.52]
[1748627097946,0.0449444,158.44,158.37,32.52]
[1748627098246,0.04379336,158.42,158.37,32.52]
[1748627098442,0.04379336,158.42,158.34,32.52]
[1748627099246,0.04379336,158.42,158.37,11.07879428]
[1748627099443,0.04379336,158.42,158.41,6.3122]
[1748627100351,577.46,158.5,158.43,6.3112]
[1748627100648,577.46,158.5,158.42,32.52]
[1748627100649,6.3097,158.48,158.42,32.52]
[1748627100845,2.0698,158.51,158.47,6.3098]
[1748627101248,6.3087,158.5,158.47,6.3098]
[1748627101444,0.04729695,158.5,158.47,6.35690034]
[1748627101647,0.04729695,158.5,158.47,0.04710034]
[1748627101848,6.3094,158.48,158.47,0.04710034]
[1748627102243,0.04729695,158.5,158.47,0.04710034]
[1748627102545,6.3092,158.49,158.47,0.04710034]
[1748627103053,6.3094,158.48,158.47,0.04710034]
[1748627104551,6.3094,158.48,158.47,3.4e-07]
[1748627104755,6.3113,158.44,158.42,32.52]
[1748627105058,32.52,158.49,158.42,32.52]
[1748627105253,6.3117,158.43,158.4,6.3124]
[1748627105652,6.35287831,158.43,158.4,6.3124]
[1748627105855,6.3118,158.42,158.39,38.8328]
[1748627106054,0.04117831,158.43,158.39,32.52]
[1748627106554,6.3123,158.41,158.39,32.52]
[1748627106755,0.04117831,158.43,158.39,32.52]
[1748627106956,6.3126,158.4,158.39,32.52]
[1748627107852,0.04117831,158.43,158.39,43.59879428]
[1748627108258,0.04117831,158.43,158.41,6.3122]
[1748627108453,0.04117831,158.43,158.39,43.59879428]
[1748627108659,2.0698,158.51,158.42,11.07879428]
[1748627108856,2.0698,158.51,158.43,32.52]
[1748627109559,2.1608,158.5,158.43,32.52]
[1748627109859,0.04606292,158.48,158.45,0.04581462]
[1748627110449,6.3102,158.46,158.45,0.04581462]
[1748627111054,6.3102,158.46,158.45,1.462e-05]
[1748627111260,11.07879428,158.47,158.37,32.52]
[1748627111557,11.07879428,158.47,158.38,32.52]
[1748627111558,45.59809428,158.47,158.38,32.52]
[1748627111959,34.5193,158.47,158.38,32.52]
[1748627112154,6.3126,158.4,158.38,32.52]
[1748627112355,0.04677915,158.41,158.38,32.52]
[1748627112957,6.313,158.39,158.38,32.52]
[1748627113260,0.04677915,158.41,158.35,32.52]
[1748627113457,6.3132,158.39,158.35,38.8343]
[1748627113755,0.04677077,158.4,158.35,32.52]
[1748627113959,0.04677077,158.4,158.38,6.3134]
[1748627114466,0.04677077,158.4,158.35,43.59879428]
[1748627114655,0.04677077,158.4,158.37,6.3136]
[1748627115161,6.35937077,158.4,158.37,6.3136]
[1748627115761,6.3131,158.39,158.36,6.3139]
[1748627115964,0.04677077,158.4,158.35,43.59879428]
[1748627116761,0.04677077,158.4,158.39,6.313]
[1748627116962,0.04677077,158.4,158.39,38.853]
[1748627118371,6.3112,158.44,158.41,6.3119]
[1748627118562,34.6608,158.5,158.41,6.3119]
[1748627119068,6.3113,158.44,158.41,6.3119]
[1748627119262,34.6608,158.5,158.4,6.3124]
[1748627119467,0.04779203,158.47,158.43,0.04594026]
[1748627119770,6.311,158.44,158.43,0.04594026]
[1748627122665,0.04779203,158.47,158.43,0.04594026]
[1748627122871,0.04779203,158.47,158.44,6.311]
[1748627123067,0.04779203,158.47,158.43,32.54594026]
[1748627123372,0.04779203,158.47,158.45,6.3104]
[1748627123965,0.04779203,158.47,158.46,6.3102]
[1748627125565,0.04779203,158.47,158.45,6.3104]
[1748627125780,0.04779203,158.47,158.43,32.54594026]
[1748627126272,0.04779203,158.47,158.43,0.04594026]
[1748627127174,6.311,158.44,158.43,0.04594026]
[1748627129379,0.04779203,158.47,158.43,0.04594026]
[1748627129879,0.04779203,158.47,158.46,6.3102]
[1748627131278,0.04779203,158.47,158.45,6.3104]
[1748627132273,0.04779203,158.47,158.44,38.7908]
[1748627132477,0.04779203,158.47,158.44,32.48]
[1748627132679,6.3103,158.46,158.43,0.04594026]
[1748627132980,0.04779203,158.47,158.43,0.04594026]
[1748627133578,6.3103,158.46,158.43,0.04594026]
[1748627133776,0.04779203,158.47,158.43,0.04594026]
[1748627134681,6.3103,158.46,158.43,0.04594026]
[1748627134882,0.04779203,158.47,158.43,0.04594026]
[1748627135378,6.3105,158.46,158.43,6.35714026]
[1748627135683,0.04779203,158.47,158.43,0.04594026]
[1748627135876,6.311,158.44,158.43,0.04594026]
[1748627136986,0.04779203,158.47,158.38,32.48]
[1748627136987,6.3123,158.41,158.38,32.48]
[1748627137582,6.3112,158.44,158.39,6.3129]
[1748627137782,34.5305,158.46,158.38,32.48]
[1748627138082,6.3116,158.43,158.39,6.313]
[1748627139086,6.35427602,158.44,158.4,6.3125]
[1748627139282,0.04307602,158.44,158.35,32.48]
[1748627139581,0.044963,158.41,158.35,6.3143]
[1748627139786,6.3132,158.39,158.35,6.3143]
[1748627140488,32.544963,158.41,158.34,6.3147]
[1748627140678,0.04362885,158.39,158.32,577.44]
[1748627141088,0.04362885,158.39,158.36,6.3138]
[1748627141681,6.35682885,158.39,158.36,6.3138]
[1748627141983,0.04362885,158.39,158.32,577.44]
[1748627142486,0.04362885,158.39,158.36,6.3139]
[1748627143080,0.04362885,158.39,158.37,6.3137]
[1748627143385,0.04362885,158.39,158.32,577.44]
[1748627143587,0.04362885,158.39,158.38,6.3134]
[1748627143786,0.04362885,158.39,158.32,577.44]
[1748627145686,0.04362885,158.39,158.37,6.3135]
[1748627146081,6.35672885,158.39,158.32,577.44]
[1748627146388,6.35672885,158.39,158.36,6.3138]
[1748627146590,6.3134,158.38,158.32,577.44]
[1748627146790,0.04362885,158.39,158.36,6.3141]
[1748627146991,0.04362885,158.39,158.32,577.44]
[1748627147493,0.04362885,158.39,158.37,6.3134]
[1748627147690,0.04362885,158.39,158.32,577.44]
[1748627147889,0.04362885,158.39,158.34,6.3149]
[1748627148092,6.3138,158.37,158.34,6.3149]
[1748627149696,6.3142,158.36,158.33,6.3153]
[1748627149893,6.36232149,158.36,158.33,6.3153]
[1748627151095,6.36232149,158.36,158.32,6.3156]
[1748627151096,6.3146,158.35,158.32,6.3156]
[1748627151297,0.04812149,158.36,158.32,6.3156]
[1748627151498,6.315,158.34,158.31,6.316]
[1748627151996,6.315,158.34,158.3,6.3163]
[1748627152197,6.35945899,158.34,158.3,6.3163]
[1748627152601,6.3155,158.33,158.3,6.3163]
[1748627152799,0.04445899,158.34,158.28,32.48]
[1748627152995,0.04445899,158.34,158.3,11.07879428]
[1748627153200,1.9897,158.4,158.3,11.07879428]
[1748627153398,1.9897,158.4,158.31,2.0028]
[1748627153598,1.9897,158.4,158.32,32.48]
[1748627154105,1.9897,158.4,158.36,6.314]
[1748627154307,6.3132,158.39,158.36,6.35421671]
[1748627156103,2.02989364,158.4,158.37,6.3137]
[1748627156104,8.34259364,158.4,158.37,6.3137]
[1748627156308,6.35289364,158.4,158.36,0.04021671]
[1748627156699,6.35289364,158.4,158.37,6.3137]
[1748627157097,6.313,158.39,158.36,0.04021671]
[1748627157507,0.04019364,158.4,158.36,0.04021671]
[1748627157705,6.35279364,158.4,158.36,0.04021671]
[1748627157906,6.35279364,158.4,158.37,6.3137]
[1748627159207,0.04019364,158.4,158.39,6.313]
[1748627159508,0.04019364,158.4,158.36,0.04021671]
[1748627159705,0.04019364,158.4,158.39,6.313]
[1748627159908,32.48,158.47,158.37,43.55879428]
[1748627160802,0.03997468,158.44,158.4,0.04565919]
[1748627160999,0.03997468,158.44,158.43,6.3114]
[1748627162013,34.6146,158.53,158.43,11.07879428]
[1748627162809,6.3081,158.52,158.49,6.3088]
[1748627163209,0.04337512,158.52,158.49,0.04430654]
[1748627163403,0.04337512,158.52,158.51,6.3082]
[1748627169710,2.039,158.58,158.55,6.3062]
[1748627169915,2.1668,158.61,158.53,32.46]
[1748627170109,6.305,158.59,158.53,32.46]
[1748627170318,6.305,158.59,158.56,6.3061]
[1748627170521,8.4713,158.61,158.53,32.46]
[1748627170719,0.0462709,158.59,158.55,0.04006098]
[1748627171018,0.0462709,158.59,158.57,6.3055]
[1748627171220,0.0462709,158.59,158.55,0.04006098]
[1748627171420,0.0462709,158.59,158.58,6.3054]
[1748627171619,32.46,158.65,158.57,32.46]
[1748627171818,6.3035,158.63,158.57,32.46]
[1748627172216,6.3035,158.63,158.59,6.3047]
[1748627172417,6.3039,158.62,158.59,6.3047]
[1748627172719,0.04090822,158.62,158.59,6.35045461]
[1748627172913,0.04090822,158.62,158.59,0.04575461]
[1748627173114,6.3043,158.61,158.59,0.04575461]
[1748627173520,0.04090822,158.62,158.59,0.04575461]
[1748627173716,6.3046,158.6,158.59,0.04575461]
[1748627174719,6.3058,158.57,158.54,32.46]
[1748627175113,6.3058,158.57,158.54,38.7668]
[1748627175628,6.3055,158.58,158.54,32.46]
[1748627175920,6.35406266,158.58,158.54,32.50595072]
[1748627176119,6.35406266,158.58,158.54,38.81265072]
[1748627176318,6.35406266,158.58,158.54,32.50595072]
[1748627176518,0.04856266,158.58,158.54,32.50595072]
[1748627177125,0.04856266,158.58,158.57,6.3058]
[1748627178916,0.04856266,158.58,158.54,0.04595072]
[1748627179220,6.3066,158.55,158.54,0.04595072]
[1748627179724,6.3066,158.55,158.54,5.072e-05]
[1748627180820,6.309,158.49,158.48,32.42]
[1748627181128,51.1781,158.57,158.45,32.42]
[1748627181317,32.42,158.56,158.45,32.42]
[1748627181517,6.3101,158.47,158.45,32.42]
[1748627181822,0.04701985,158.48,158.45,32.42]
[1748627182022,6.3101,158.46,158.45,32.46007885]
[1748627182212,0.0476809,158.48,158.45,32.46007885]
[1748627182419,6.31,158.47,158.45,32.46007885]
[1748627183018,6.3101,158.46,158.45,32.46007885]
[1748627183524,0.0476809,158.48,158.45,32.46007885]
[1748627183727,6.3099,158.47,158.45,32.46007885]
[1748627183919,0.0476809,158.48,158.45,32.46007885]
[1748627184425,6.3098,158.47,158.45,32.46007885]
[1748627184630,0.0476809,158.48,158.45,32.46007885]
[1748627184919,6.3098,158.47,158.45,32.46007885]
[1748627185121,0.0476809,158.48,158.45,32.46007885]
[1748627186519,6.31,158.47,158.45,32.46007885]
[1748627186717,0.0476809,158.48,158.45,32.46007885]
[1748627187114,6.3101,158.47,158.45,32.46007885]
[1748627187328,0.0476809,158.48,158.45,32.46007885]
[1748627188027,32.44,158.6,158.46,20.67572772]
[1748627188931,6.3527636,158.55,158.51,0.04288513]
[1748627189125,0.0461636,158.55,158.52,32.44]
[1748627189728,6.3073,158.54,158.52,32.44]
[1748627190235,0.0461636,158.55,158.52,32.44]
[1748627190531,6.307,158.54,158.52,38.7477]
[1748627191130,6.3528636,158.55,158.52,38.7477]
[1748627191326,6.3528636,158.55,158.54,6.307]
[1748627191327,0.0461636,158.55,158.54,6.307]
[1748627193931,32.42,158.65,158.52,32.44]
[1748627194132,6.3049,158.6,158.52,32.44]
[1748627194524,32.42,158.65,158.52,32.44]
[1748627195029,0.04656742,158.6,158.58,6.3051]
[1748627195233,0.0468923,158.61,158.59,32.42]
[1748627195730,6.3046,158.6,158.59,32.42]
[1748627195932,0.0468923,158.61,158.59,32.42]
[1748627196333,6.3511923,158.61,158.59,32.42]
[1748627196534,0.0468923,158.61,158.59,32.42]
[1748627196835,6.3511923,158.61,158.59,32.42]
[1748627197032,0.0468923,158.61,158.59,32.42]
[1748627198036,0.0468923,158.61,158.59,38.7248]
[1748627198232,0.0468923,158.61,158.59,32.42]
[1748627198429,6.3511923,158.61,158.59,32.42]
[1748627198633,0.0468923,158.61,158.59,32.42]
[1748627199826,6.3046,158.6,158.59,32.42]
[1748627200032,0.0468923,158.61,158.59,32.42]
[1748627200430,6.3513923,158.61,158.59,32.42]
[1748627200627,0.0468923,158.61,158.59,32.42]
[1748627201135,6.3046,158.6,158.59,32.42]
[1748627202134,6.3,158.6,158.52,32.42]
[1748627202438,6.171,158.59,158.52,32.42]
[1748627202636,6.3074,158.53,158.52,32.42]
[1748627203138,0.04569789,158.54,158.44,577.62]
[1748627203438,32.42,158.56,158.44,577.62]
[1748627204237,6.3106,158.45,158.44,32.42]
[1748627204635,6.3106,158.45,158.43,0.04466144]
[1748627204836,0.04579424,158.46,158.43,0.04466144]
[1748627205739,0.04579424,158.46,158.45,6.3106]
[1748627206735,0.04579424,158.46,158.45,38.7306]
[1748627208038,0.04579424,158.46,158.45,32.42]
[1748627209743,6.35599424,158.46,158.45,32.42]
[1748627210440,6.311,158.44,158.43,0.04466144]
[1748627210941,0.04579424,158.46,158.43,0.04466144]
[1748627213643,6.35619424,158.46,158.43,6.35586144]
[1748627214348,0.04579424,158.46,158.43,6.35586144]
[1748627214546,0.04579424,158.46,158.43,0.04466144]
[1748627215543,6.311,158.44,158.43,0.04466144]
[1748627217646,0.04579424,158.46,158.43,0.04466144]
[1748627217843,0.04579424,158.46,158.43,32.46466144]
[1748627218752,0.04579424,158.46,158.45,6.3106]
[1748627220344,32.42,158.53,158.48,6.3093]
[1748627220550,36.7367,158.56,158.48,6.3093]
[1748627220744,6.3084,158.51,158.48,6.3093]
[1748627220951,36.7367,158.56,158.47,6.3096]
[1748627221150,36.7367,158.56,158.44,32.42]
[1748627221344,6.3082,158.51,158.5,0.04380165]
[1748627221541,0.04492965,158.53,158.44,32.42]
[1748627221746,6.3108,158.45,158.41,32.42]
[1748627221946,32.42,158.52,158.41,32.42]
[1748627222551,0.04029656,158.48,158.45,0.04431045]
[1748627222746,32.46029656,158.48,158.41,32.42]
[1748627222947,6.3117,158.43,158.41,32.42]
[1748627223459,4.1738,158.47,158.39,32.42]
[1748627223460,6.3119,158.42,158.39,32.42]
[1748627223748,0.04809909,158.42,158.39,32.46011664]
[1748627223950,0.04809909,158.42,158.4,6.3123]
[1748627224652,6.36009909,158.42,158.39,38.77301664]
[1748627225060,6.3125,158.41,158.39,32.46011664]
[1748627225259,0.04809909,158.42,158.39,32.46011664]
[1748627226761,6.3126,158.4,158.39,0.04011664]
[1748627229269,6.3146,158.35,158.33,32.44]
[1748627229562,32.44,158.44,158.33,32.44]
[1748627230272,0.04154539,158.4,158.37,0.04357971]
[1748627231373,6.3134,158.38,158.37,0.04357971]
[1748627231573,4.0371,158.39,158.33,32.44]
[1748627232172,4.0371,158.39,158.3,577.48]
[1748627232369,6.3155,158.33,158.3,38.7563]
[1748627232574,0.04371821,158.33,158.24,2.0925]
[1748627232775,0.04371821,158.33,158.23,2.1284]
[1748627232974,0.04628582,158.3,158.24,32.44]
[1748627233173,6.3176,158.28,158.25,6.3184]
[1748627233368,0.04628582,158.3,158.24,32.44]
[1748627233574,0.04628582,158.3,158.22,545.18]
[1748627233776,6.3185,158.25,158.23,32.44]
[1748627233978,0.04151446,158.26,158.23,32.44]
[1748627234276,6.3197,158.23,158.2,32.44]
[1748627234470,6.3197,158.23,158.19,32.44]
[1748627234471,0.04703526,158.23,158.19,32.44]
[1748627234674,0.04703526,158.23,158.18,32.44]
[1748627236480,6.32,158.22,158.18,32.44]
[1748627236681,0.04703526,158.23,158.18,32.44]
[1748627236883,6.3207,158.2,158.17,6.3216]
[1748627237081,0.04703526,158.23,158.16,32.46]
[1748627237278,0.04860992,158.21,158.16,32.46]
[1748627237487,0.04860992,158.21,158.17,6.3214]
[1748627237981,6.36890992,158.21,158.17,6.3214]
[1748627238180,6.36890992,158.21,158.16,38.7821]
[1748627238181,0.04860992,158.21,158.16,38.7821]
[1748627238383,0.04860992,158.21,158.13,32.46]
[1748627238586,0.04164284,158.19,158.12,32.46]
[1748627238887,0.04273245,158.17,158.12,32.46]
[1748627239883,0.04273245,158.17,158.16,6.3221]
[1748627240277,0.04273245,158.17,158.15,6.3225]
[1748627240477,0.04273245,158.17,158.12,32.46]
[1748627240882,6.3226,158.15,158.12,32.46]
[1748627241181,0.04273245,158.17,158.07,32.46]
[1748627241491,6.3237,158.13,158.09,6.3249]
[1748627241783,0.04160135,158.14,158.09,6.3249]
[1748627241980,6.3234,158.13,158.09,6.3249]
[1748627242184,0.04160135,158.14,158.08,6.3252]
[1748627242485,6.324,158.12,158.08,6.3252]
[1748627242674,0.04160135,158.14,158.04,32.46]
[1748627242675,32.50160135,158.14,158.04,32.46]
[1748627242877,2.08606423,158.11,158.04,32.46]